[Event "34th MPL National U14-ch 2022"]
[Site "Ahmedabad"]
[Date "2022.05.11"]
[Round "6.10"]
[White "Sparsh Bisht"]
[Black "Ilamparthi A R"]
[Result "1/2-1/2"]
[ECO "B82"]
[WhiteElo "1515"]
[BlackElo "2121"]
[Annotator "TA"]
[PlyCount "71"]
[EventDate "2022.05.09"]
[EventType "swiss"]
[EventCountry "IND"]
[SourceTitle "playchess.com"]
[Source "ChessBase"]
[SourceQuality "1"]
[TimeControl "5400+30"]

{[%evp 23,71,0,7,-36,0,0,0,-17,0,-13,0,0,0,0,19,10,16,16,34,27,23,4,3,0,52,57,64,12,111,55,127,64,63,56,71,62,110,83,93,46,84,0,68,0,135,81,63,0,141,0]} 1. e4 {[%emt 0:00:33]} c5 {[%emt 0:00:05]} 2. Nf3 {[%emt 0:00:02]} d6 {[%emt 0:00:06]} 3. d4 {[%emt 0:00:06]} cxd4 {[%emt 0:00:04]} 4. Nxd4 {[%emt 0:00:04]} Nf6 {[%emt 0:00:06]} 5. Nc3 {[%emt 0:00:04]} a6 {[%emt 0:00:05]} 6. f4 {[%emt 0:00:12]} e6 {[%emt 0:01:38]} 7. Bd3 {[%emt 0:00:43]} Be7 {[%emt 0:01:11]} 8. O-O {[%emt 0:03:14]} O-O {[%emt 0:01:03]} 9. Nf3 {[%emt 0:00:35]} Nc6 {[%emt 0:02:36]} 10. Qe1 {[%emt 0:04:21]} Qc7 {[%emt 0:04:41]} 11. Kh1 {[%emt 0:02:54]} b5 {[%emt 0:06:06]} 12. a3 {[%emt 0:04:29]} Bb7 {[%emt 0:01:25] [#]} 13. f5 $146 {[%emt 0:00:18] B82: Sicilian Scheveningen: 6 f4.} ({Predecessor:} 13. e5 Nd7 14. exd6 Qxd6 15. Be3 Nf6 16. Ne4 Nxe4 17. Bxe4 Qc7 18. f5 exf5 19. Bxf5 Rae8 20. Qf2 Bc8 {½-½ (31) Alarcia Astiz,C (2306)-Vazquez Igarza,R (2556) Madrid 2021}) 13... b4 {[%emt 0:13:39]} 14. axb4 {[%emt 0:06:36]} Nxb4 {[%emt 0:01:30]} 15. Qg3 {[%emt 0:03:47] The position is equal.} Kh8 {[%emt 0:04:31]} 16. Be3 {[%emt 0:05:50][%cal Bc1e3,Be3d4,Bd4c3][%mdl 32]} Nxd3 {[%emt 0:05:17]} 17. cxd3 {[%emt 0:00:22]} exf5 {[%emt 0:02:40]} 18. exf5 {[%emt 0:00:34]} Rfb8 {[%emt 0:04:03]} 19. Bd4 {[%emt 0:05:39]} Ne8 {[%emt 0:13:39]} 20. Ng5 {[%emt 0:03:38]} Bxg5 {[%emt 0:05:58]} 21. Qxg5 {[%emt 0:01:14] Hoping for f6.} f6 {[%emt 0:00:06]} 22. Qg3 {[%emt 0:03:14]} Bc6 {[%emt 0:00:34]} 23. Ne2 {[%emt 0:03:04]} Rb5 {[%emt 0:02:18]} (23... Qf7 $1 $11) 24. Bc3 $36 {[%emt 0:02:05][%mdl 2048] White has the initiative.} Qd7 {[%emt 0:07:48]} 25. Nd4 {[%emt 0:02:23]} (25. Qh3 $1 $14) 25... Rd5 {[%emt 0:01:06]} (25... Rb7 $11) 26. Rae1 {[%emt 0:04:43]} (26. Rf4 $16) 26... Re5 {[%emt 0:04:33]} (26... Bb5 $14) 27. Ne6 {[%emt 0:00:51]} (27. Nxc6 $16 Rxe1 28. Rxe1 Qxc6 29. Re7) 27... Rxe1 {[%emt 0:00:23]} 28. Rxe1 {[%emt 0:00:13]} ({Of course not} 28. Bxe1 Nc7 $11) 28... Rb8 {[%emt 0:01:24]} 29. h3 {[%emt 0:16:25]} a5 {[%emt 0:01:52]} (29... Rc8 $14 {might be stronger.}) 30. Kh2 {[%emt 0:03:56]} a4 {[%emt 0:00:30]} 31. Qg4 {[%emt 0:01:55]} ({White should play} 31. Qh4 $16 {[%cal Oe6g7] aiming for Nxg7!} Kg8 32. Re3) 31... Rc8 {[%emt 0:02:47]} 32. Nf8 {0x0.000a7ad551eedp-1022s more active pieces.} (32. Nf4 $16) 32... Qb7 {[%emt 0:00:30]} (32... Qf7 $11 33. Ne6 Qd7) 33. Ne6 (33. Re2 $14) 33... Bb5 {[%emt 0:00:30] [#]} (33... Qd7 $11 {keeps the balance.}) 34. Qd4 (34. Qh5 $142 $1) 34... Bc6 {[%emt 0:00:30]} 35. Qg4 (35. Qh4 $14 Qf7 36. Re2) 35... Bb5 $16 {[%emt 0:00:30] [#]} 36. Qd4 {Weighted Error Value: White=0.32/Black=0.36} (36. Qh5 $1 $16) 1/2-1/2

[Event "34th MPL National U14-ch 2022"]
[Site "Ahmedabad"]
[Date "2022.05.12"]
[Round "7.1"]
[White "John Veny Akkarakaran"]
[Black "Kadam Om Manish"]
[Result "0-1"]
[ECO "B92"]
[WhiteElo "1855"]
[BlackElo "2144"]
[Annotator "TA"]
[PlyCount "175"]
[EventDate "2022.05.09"]
[EventType "swiss"]
[EventCountry "IND"]
[SourceTitle "playchess.com"]
[Source "ChessBase"]
[SourceQuality "1"]
[TimeControl "5400+30"]

{[%evp 20,175,-12,-9,46,43,54,45,48,51,49,53,43,36,42,43,61,49,62,62,74,77,76,68,81,66,69,3,15,6,9,16,50,50,64,44,44,41,49,44,39,41,54,53,52,54,59,36,50,23,30,31,41,35,37,25,124,137,132,143,117,114,137,126,133,105,132,141,161,120,131,104,104,104,144,147,156,150,147,145,152,156,179,93,111,0,16,0,0,0,0,-1248,-1366,-1358,-1340,-1108,-546,-531,-517,-489,-407,-385,-334,-426,-239,-366,-367,-416,-416,-387,-302,-284,-170,-178,-117,-382,-365,-427,-426,-6520,-429,-5506,-4402,-29950,-29950,-29948,-29950,-29941,-5073,-29960,-29962,-29958,-29965,-29963,-29963,-29959,-29962,-29959,-29959,-29960,-29961,-29961,-29956,-29963,-29964,-29980,-29981,-29981,-29982,-29982,-29983,-29983,-29984,-29984,-29985,-29985,-29984,-29985]} 1. e4 {[%emt 0:00:03]} c5 {[%emt 0:00:04]} 2. Nf3 {[%emt 0:00:07]} d6 {[%emt 0:00:03]} 3. d4 {[%emt 0:00:07]} cxd4 {[%emt 0:00:03]} 4. Nxd4 {[%emt 0:00:10]} Nf6 {[%emt 0:00:03]} 5. Nc3 {[%emt 0:00:11]} a6 {[%emt 0:00:03]} 6. Be2 {[%emt 0:00:15]} e5 {[%emt 0:00:03]} 7. Nb3 {[%emt 0:00:14]} Be7 {[%emt 0:00:03]} 8. O-O {[%emt 0:00:11]} O-O {[%emt 0:00:03]} 9. Kh1 {[%emt 0:00:23]} b6 {[%emt 0:00:27]} 10. Be3 {[%emt 0:00:16]} Bb7 {[%emt 0:00:03]} 11. f3 {[%emt 0:00:09]} Nbd7 {[%emt 0:00:12] B92: Sicilian Najdorf: 6 Be2.} (11... b5 $11) 12. a4 $14 {[%emt 0:00:11]} Rc8 {[%emt 0:00:10]} 13. Qd2 {[%emt 0:09:17] has lost popularity (13.Rf2).} Qc7 {[%emt 0:00:47][%cal Od6d5] White is slightly better.} 14. Rac1 {[%emt 0:12:14]} Rfd8 {[%emt 0:02:39]} 15. Rfd1 {[%emt 0:02:32]} Ra8 {[%emt 0:07:21]} 16. Qe1 {[%emt 0:06:22]} Bc6 {[%emt 0:03:51] [#]} 17. Qf1 $146 {[%emt 0:09:25]} ({Predecessor:} 17. Rd2 Rdb8 18. Qf1 Qc8 19. Ra1 Bf8 20. Nc1 Qb7 21. Bc4 Nc5 22. b3 b5 23. axb5 axb5 24. Rxa8 Qxa8 25. Nxb5 Bxb5 26. Bxb5 {0-1 (42) Kudrin,S (2485)-Fedorowicz,J (2520) Estes Park 1985}) 17... Qb7 {[%emt 0:02:36]} 18. Bc4 {[%emt 0:06:34]} Rdc8 {[%emt 0:03:02]} 19. Ra1 {[%emt 0:06:57]} Rc7 {[%emt 0:02:19]} 20. Qe2 {[%emt 0:12:03]} Rcc8 {[%emt 1:16:38]} 21. Bg5 {[%emt 0:07:08]} Kf8 {[%emt 0:17:17]} 22. Bxf6 {[%emt 0:07:01]} Nxf6 {[%emt 0:00:07]} 23. Nd5 {[%emt 0:04:08]} (23. Nd2) (23. Nd2 $14) 23... Bxd5 $11 {[%emt 0:01:57]} 24. Bxd5 {[%emt 0:00:11]} Nxd5 {[%emt 0:00:04]} 25. Rxd5 {[%emt 0:00:14]} Rc7 {[%emt 0:00:34]} 26. c3 {[%emt 0:01:26]} Rac8 {[%emt 0:00:00]} 27. Qd3 {[%emt 0:04:12]} Rc4 {[%emt 0:01:26]} 28. Nd2 {[%emt 0:03:17][%cal Bb3d2,Bd2c4,Bc4e3,Be3d5][%mdl 32]} R4c5 {[%emt 0:00:02]} 29. Rxc5 {[%emt 0:02:30]} dxc5 {[%emt 0:20:37]} 30. Nc4 {[%emt 0:00:29]} Rd8 {[%emt 0:01:21]} 31. Qe2 {[%emt 0:00:26]} f6 {[%emt 0:00:58]} 32. Ne3 {[%emt 0:00:15]} b5 {[%emt 0:00:13]} 33. axb5 {[%emt 0:02:18]} axb5 {[%emt 0:00:58]} 34. g3 {[%emt 0:01:49]} c4 {[%emt 0:00:22]} 35. Nd5 {[%emt 0:00:06]} Bc5 {[%emt 0:00:03]} 36. Kg2 {[%emt 0:01:13]} f5 {[%emt 0:00:22]} 37. Rd1 {[%emt 0:00:46][%cal Od5f4]} Qf7 {[%emt 0:00:52]} (37... Rd7) (37... Qc6 $11 {remains equal.}) 38. b3 $16 {[%emt 0:01:36]} cxb3 {[%emt 0:02:31]} 39. Qxb5 {[%emt 0:00:08]} Rc8 {[%emt 0:00:03]} 40. Rf1 {[%emt 0:00:28]} Kg8 {[%emt 0:01:00]} 41. Qxb3 {[%emt 0:00:13]} Kh8 {[%emt 0:00:48]} 42. Qb5 {[%emt 0:01:53]} h5 {[%emt 0:00:31]} 43. Qd3 {[%emt 0:00:25]} f4 {[%emt 0:00:38]} (43... Rd8 44. Rd1 g6) 44. Qc4 {[%emt 0:00:51]} (44. gxf4 exf4 45. e5) 44... Qe6 {[%emt 0:00:48]} 45. Qb5 {[%emt 0:00:59]} (45. Ra1) 45... Qd6 {[%emt 0:00:39]} 46. Qb7 {[%emt 0:00:50]} Rb8 {[%emt 0:02:25]} (46... Rf8) 47. Qf7 {[%emt 0:00:09][%csl LRf4,LRh5]} Qh6 {[%emt 0:00:12]} 48. gxf4 {[%emt 0:00:49]} Rf8 {[%emt 0:00:17]} 49. Qc7 {[%emt 0:00:33]} Bd6 {[%emt 0:00:03]} 50. Qc6 {[%emt 0:00:20]} exf4 {[%emt 0:01:09] [#]} 51. Ra1 {[%emt 0:00:40]} (51. c4) (51. c4 $1 $18 {[%cal Rc4c5]}) 51... Kh7 {[%emt 0:02:37]} 52. Ra8 {[%emt 0:01:26]} (52. Qd7) (52. Qd7 $16) 52... Qg6+ {[%emt 0:00:41]} (52... Qg5+ 53. Kh1 Rxa8 54. Qxa8 Qh4) 53. Kf1 {[%emt 0:01:05] aiming for Rxf8.} (53. Kh1 Rxa8 54. Qxa8) 53... Rxa8 {[%emt 0:00:06]} 54. Qxa8 $11 {[%emt 0:00:01][%mdl 4096] Endgame KQB-KQN} Bc5 {[%emt 0:00:07]} 55. Nb4 $2 {[%emt 0:01:07][%mdl 8192]} (55. Qc8 Qg1+ 56. Ke2) (55. Qc8 $11 Qg1+ 56. Ke2) 55... Qg1+ $19 {[%emt 0:00:13]} 56. Ke2 {[%emt 0:00:02]} Qe3+ {[%emt 0:03:29]} 57. Kd1 {[%emt 0:00:01]} Qxc3 {[%emt 0:02:07]} (57... Qxf3+ 58. Kc2 Qe2+ 59. Kb3 f3) (57... Qxf3+ $142 58. Kc2 Qe2+ 59. Kb3 f3) 58. Nc2 {[%emt 0:00:34]} Qxf3+ {[%emt 0:02:53]} 59. Kc1 {[%emt 0:00:00]} Qg4 {[%emt 0:05:37] And now ...f3 would win.} 60. Qd5 {[%emt 0:00:15]} Bb6 {[%emt 0:01:11] Hoping for ...f3.} 61. Qb5 {[%emt 0:01:21]} (61. Kd2) 61... Qg6 {[%emt 0:01:15]} (61... Bg1 62. e5) (61... Qg1+ 62. Kb2 Bd4+ 63. Nxd4 Qxd4+ 64. Kb3 Qe3+ 65. Kb2 Qh3) ({Don't blunder} 61... Bg1 $2 62. Kd2 $19) (61... Qg1+ $142 62. Kb2 Bd4+ 63. Nxd4 Qxd4+ 64. Kb3 Qd1+ 65. Kb2 Qd2+ 66. Kb3 Qe3+ 67. Kb2 Qf2+ 68. Kc3 Qf3+ 69. Kb2 Qf2+ 70. Kb3 Qf3+ 71. Kb2 Qh3) 62. Qe2 {[%emt 0:01:42]} (62. e5 $142) 62... Bc5 {[%emt 0:01:31] White must now prevent ...Qg4.} 63. Qf3 {[%emt 0:01:10]} Qg1+ {[%emt 0:02:55]} 64. Kb2 {[%emt 0:00:00]} Qg5 {[%emt 0:00:01]} 65. Ne1 {[%emt 0:00:49]} Bd4+ {[%emt 0:00:11]} (65... Be3 66. Qe2 Qe5+ 67. Kb3 Qb8+ 68. Ka4 Qa7+ 69. Kb3 Qb6+ 70. Ka4 Qd4+ 71. Kb3 Kh6) (65... Be3 $142 {Strongly threatening ...Bd2.} 66. Nc2 Qb5+ 67. Kc3 Qc6+ 68. Kb3 Qb5+ 69. Kc3 Qe5+ 70. Kd3 Qd6+ 71. Kc4 Qe6+ 72. Kc3 Qc8+ 73. Kb3 Qb8+ 74. Kc3 Qe5+ 75. Kd3 Qd6+ 76. Kc4 Qe6+ 77. Kc3 Qf6+ 78. Kb3 Qb6+ 79. Kc4 Qc5+ 80. Kb3 Qb6+ 81. Kc4 Qe6+) 66. Kc2 {[%emt 0:00:04]} Be3 {[%emt 0:02:38]} ({Better is} 66... Kh6 $19 {...Qf6 is the strong threat.} 67. Nd3 g6 68. Nxf4 (68. Qxf4 Qxf4 69. Nxf4 Ba1 $11) 68... Qf6) 67. Nd3 $2 {[%emt 0:02:06][%mdl 8192] This move loses the game for White.} (67. Ng2) (67. Ng2 $17) 67... Qb5 {[%emt 0:14:19]} 68. Nxf4 {[%emt 0:01:45]} Qc4+ {[%emt 0:01:51]} 69. Kd1 {[%emt 0:00:04]} (69. Kb2 $142 Qb4+ 70. Ka2 Qd2+ 71. Kb3 Bxf4 72. Qxh5+ Bh6 73. Qe5) 69... Qc1+ {[%emt 0:00:28]} 70. Ke2 {[%emt 0:01:47]} Bxf4 {[%emt 0:00:27]} 71. Qxh5+ {[%emt 0:00:00]} Bh6 {[%emt 0:00:04]} 72. Qf5+ {[%emt 0:00:00]} g6 {[%emt 0:00:00]} 73. Qd7+ {[%emt 0:00:00]} Bg7 {[%emt 0:00:01] ( -> ...Qc2+)} 74. Qh3+ {[%emt 0:00:03] [#]} Qh6 $1 {[%emt 0:00:01] Black mates.} 75. Qg3 {[%emt 0:00:27]} Qh5+ {[%emt 0:00:04]} 76. Kd3 {[%emt 0:00:29]} Be5 {[%emt 0:00:08]} 77. Qf2 {[%emt 0:00:03]} Qxh2 {[%emt 0:00:09]} 78. Qf7+ {[%emt 0:00:05]} Bg7 {[%emt 0:00:01]} 79. Qf3 {[%emt 0:00:15]} Qd6+ {[%emt 0:00:52]} 80. Kc4 {[%emt 0:00:00]} Qd4+ {[%emt 0:00:19]} 81. Kb5 {[%emt 0:00:05]} Bf6 {[%emt 0:01:24]} 82. Kc6 {[%emt 0:00:05]} Qc3+ {[%emt 0:00:05]} 83. Qxc3 {[%emt 0:00:13]} Bxc3 {[%emt 0:00:01]} 84. Kd5 {[%emt 0:00:08]} Kh6 {[%emt 0:00:21]} 85. e5 {[%emt 0:00:04]} Kh5 {[%emt 0:00:11]} 86. e6 {[%emt 0:00:02]} Bb4 {[%emt 0:00:02]} 87. Ke4 {[%emt 0:00:11]} Kg4 {[%emt 0:00:05]} 88. Kd4 {[%emt 0:06:50] Weighted Error Value: White=0.30/Black=0.24 (precise)} 0-1

[Event "34th MPL National U14-ch 2022"]
[Site "Ahmedabad"]
[Date "2022.05.12"]
[Round "7.2"]
[White "Vaz, Ethan"]
[Black "Md Imran"]
[Result "1/2-1/2"]
[ECO "B14"]
[WhiteElo "1792"]
[BlackElo "2122"]
[Annotator "TA"]
[PlyCount "110"]
[EventDate "2022.05.09"]
[EventType "swiss"]
[EventCountry "IND"]
[SourceTitle "playchess.com"]
[Source "ChessBase"]
[SourceQuality "1"]
[TimeControl "5400+30"]

{[%evp 14,110,18,0,0,0,7,0,0,0,0,0,4,0,0,0,0,0,0,0,7,0,10,8,14,-7,9,0,16,0,7,0,0,0,0,0,0,0,20,18,18,18,23,0,0,0,25,12,43,43,59,0,35,27,39,3,2,4,2,5,7,0,0,0,0,0,0,0,0,0,0,0,0,0,0,0,0,0,0,0,0,0,0,0,0,0,0,0,0,0,0,0,0,0,0,0,0,0,0]} 1. e4 {[%emt 0:00:03]} c5 {[%emt 0:00:07]} 2. c3 {[%emt 0:00:15]} e6 {[%emt 0:00:05]} 3. d4 {[%emt 0:00:23]} cxd4 {[%emt 0:00:05]} 4. cxd4 {[%emt 0:00:11]} d5 {[%emt 0:00:04]} 5. exd5 {[%emt 0:02:58]} exd5 {[%emt 0:00:04]} 6. Nc3 {[%emt 0:01:12]} Nc6 {[%emt 0:01:45]} 7. Nf3 {[%emt 0:01:21]} Nf6 {[%emt 0:05:44][%cal Bg8f6,Bf6e4,Be4c3][%mdl 32]} 8. Be2 {[%emt 0:03:44]} h6 {[%emt 0:01:00] B14: Caro-Kann: Panov-Botvinnik Attack with 5...e6 and 5...g6.} 9. Bf4 {[%emt 0:08:21]} Bd6 {[%emt 0:01:24]} 10. Bxd6 {[%emt 0:08:17]} Qxd6 {[%emt 0:00:06] [#]} 11. h3 $146 {[%emt 0:04:31]} ({Predecessor:} 11. O-O Be6 12. Nb5 Qd8 13. Qb3 O-O 14. Rfd1 Qb6 15. Nc3 Qxb3 16. axb3 a6 17. Na4 {½-½ (39) Auburger,P (1805)-Feller,S (1655) Bayern 2002}) 11... O-O {[%emt 1:25:36]} 12. O-O $1 {[%emt 0:01:15]} Ne4 {[%emt 0:00:00]} 13. Rc1 {[%emt 0:08:08]} Nxc3 {[%emt 0:00:00]} 14. Rxc3 {[%emt 0:04:18]} Bf5 {[%emt 0:00:00][%cal Bc8f5,Bf5e4,Be4g6][%mdl 32]} 15. Bb5 {[%emt 0:11:15]} Ne7 {[%emt 0:00:00]} 16. Re1 {[%emt 0:16:27]} Be4 {[%emt 0:00:00]} 17. Nd2 {[%emt 0:14:39]} Bg6 {[%emt 0:00:00]} 18. Nb3 {[%emt 0:03:07]} Rac8 {[%emt 0:00:00]} 19. Qe2 {[%emt 0:02:19]} Rxc3 {[%emt 0:00:00]} 20. bxc3 {[%emt 0:00:02]} Nc6 {[%emt 0:00:00]} 21. Bd3 {[%emt 0:02:39]} b6 {[%emt 0:00:00]} 22. Bxg6 {[%emt 0:00:33]} Qxg6 {[%emt 0:00:00]} 23. a4 {[%emt 0:00:53]} Qd6 {[%emt 0:00:00]} 24. Qb5 {[%emt 0:00:38]} Kh7 {[%emt 0:00:00]} 25. a5 {[%emt 0:00:41]} Rb8 {[%emt 0:00:00]} 26. axb6 {[%emt 0:00:41]} Rxb6 {[%emt 0:00:00]} 27. Qd3+ {[%emt 0:01:17]} g6 {[%emt 0:00:00]} 28. Qf3 {[%emt 0:00:38]} Kg7 {[%emt 0:00:00]} 29. Nc5 {[%emt 0:00:10]} Ne7 {[%emt 0:00:00]} 30. g3 {[%emt 0:00:33]} h5 {[%emt 0:00:00]} 31. Kg2 {[%emt 0:00:42]} Rb2 {[%emt 0:00:00]} 32. Re2 {[%emt 0:01:20]} (32. g4 $14) 32... Rb1 {[%emt 0:00:00][%cal Bb2b1,Bb1c1,Bc1c3,Bc3a3,Ba3a2,Ba2d2,Bd2d1][%mdl 32]} 33. Qe3 $1 {[%emt 0:01:19] Active counter play!} Nf5 {[%emt 0:00:00]} 34. Qe5+ {[%emt 0:00:11]} (34. Qe8 $5 {[%cal Rc5e6]} Rb8 35. Qa4 $14) 34... Qxe5 $1 {[%emt 0:00:00] The position is equal.} 35. Rxe5 $11 {[%emt 0:00:17][%cal Be2e5,Be5d5,Bd5d7,Bd7a7][%mdl 4128] Endgame KRN-KRN} Rc1 {[%emt 0:00:00]} 36. Rxd5 {[%emt 0:00:36] Black must now prevent Ne4.} Rxc3 {[%emt 0:00:00]} 37. Rd7 {[%emt 0:00:26]} a5 {[%emt 0:00:00]} 38. Ra7 {[%emt 0:00:40]} Ra3 {[%emt 0:00:00]} 39. d5 {[%emt 0:00:22]} Ra2 $1 {[%emt 0:00:00]} 40. Kg1 {[%emt 0:01:25]} Rd2 {[%emt 0:00:00]} 41. Rxa5 {[%emt 0:00:27]} Rd1+ {[%emt 0:00:00]} 42. Kg2 {[%emt 0:00:13]} Rxd5 {[%emt 0:00:00]} 43. h4 {[%emt 0:00:46]} Re5 {[%emt 0:00:00]} 44. Nb3 {[%emt 0:00:12]} Re2 {[%emt 0:00:00]} 45. Nc1 {[%emt 0:00:51]} Rd2 {[%emt 0:00:00]} 46. Ra2 {[%emt 0:00:13]} Rd1 {[%emt 0:00:00]} 47. Ne2 {[%emt 0:00:06]} Rd3 {[%emt 0:00:00]} 48. Ra7 {[%emt 0:00:39]} Rd2 {[%emt 0:00:00]} 49. Nf4 {[%emt 0:00:14]} Ne3+ {[%emt 0:00:00]} 50. Kf3 {[%emt 0:00:15]} Ng4 {[%emt 0:00:00]} 51. Nh3 {[%emt 0:00:15]} Kf8 {[%emt 0:00:00]} 52. Ra8+ {[%emt 0:00:10]} Ke7 {[%emt 0:00:00]} 53. Ra7+ {[%emt 0:00:04]} Kf6 {[%emt 0:00:00]} 54. Ra6+ {[%emt 0:00:06]} Kf5 {[%emt 0:00:00]} 55. Ra5+ {[%emt 0:00:09]} Ne5+ {[%emt 0:00:00] Weighted Error Value: White=0.04 (flawless) /Black=0.04 (flawless)} 1/2-1/2

[Event "34th MPL National U14-ch 2022"]
[Site "Ahmedabad"]
[Date "2022.05.12"]
[Round "7.3"]
[White "Mayank Chakraborty"]
[Black "Arpith S Bijoy"]
[Result "1-0"]
[ECO "B16"]
[WhiteElo "2015"]
[BlackElo "1713"]
[Annotator "TA"]
[PlyCount "52"]
[EventDate "2022.05.09"]
[EventType "swiss"]
[EventCountry "IND"]
[SourceTitle "playchess.com"]
[Source "ChessBase"]
[SourceQuality "1"]
[TimeControl "5400+30"]

{[%evp 14,52,58,50,53,19,58,27,19,17,29,16,48,18,71,32,32,31,30,0,30,39,43,58,136,129,128,118,132,133,123,114,187,205,265,266,276,270,319,299,268]} 1. e4 {[%emt 0:00:21]} c6 {[%emt 0:00:07]} 2. d4 {[%emt 0:00:04]} d5 {[%emt 0:00:05]} 3. Nd2 {[%emt 0:00:05]} dxe4 {[%emt 0:00:06]} 4. Nxe4 {[%emt 0:00:06]} Nf6 {[%emt 0:00:07]} 5. Nxf6+ {[%emt 0:00:09]} gxf6 {[%emt 0:00:06]} 6. c3 {[%emt 0:00:38]} Bf5 {[%emt 0:01:02]} 7. Bd3 {[%emt 0:00:21]} Bg6 {[%emt 0:03:16]} 8. Ne2 {[%emt 0:00:25]} e6 {[%emt 0:00:46] B16: Caro-Kann: Bronstein-Larsen Variation.} 9. h4 {[%emt 0:05:06] [#]} Rg8 $146 {[%emt 0:03:59]} ({Predecessor:} 9... Bd6 10. h5 Bxd3 11. Qxd3 Qc7 12. Bh6 f5 13. g3 Nd7 14. O-O-O O-O-O 15. c4 Qa5 16. Kb1 {½-½ (49) Cherry,A (1948)-Chojnacki,S (2198) Chess.com INT 2022}) 10. Nf4 {[%emt 0:15:31]} Bxd3 {[%emt 0:00:58] White has an edge.} 11. Qxd3 {[%emt 0:00:10]} f5 {[%emt 0:01:01]} 12. Bd2 {[%emt 0:03:08][%cal Bc1d2,Bd2f4,Bf4g5][%mdl 32]} Bd6 {[%emt 0:02:05]} 13. O-O-O {[%emt 0:01:59]} Qa5 {[%emt 0:08:36]} (13... Nd7 $11 {keeps the balance.}) 14. Qc4 {[%emt 0:11:31][%cal Of4e6] [#] Threatens to win with Nxe6!} Bxf4 {[%emt 0:00:26]} 15. Bxf4 {[%emt 0:00:05] Rhe1 is the strong threat.} Nd7 {[%emt 0:00:35]} 16. Bg5 {[%emt 0:01:30]} Qd5 {[%emt 0:23:55]} 17. Qb4 {[%emt 0:02:11][%csl Gg5][%cal Rb4e7]} f6 {[%emt 0:02:11] And now ...a5 would win.} 18. c4 $1 $36 {[%emt 0:00:23][%mdl 2048] Black is under pressure.} (18. Qxb7 Rb8 19. Qxa7 fxg5 20. hxg5 Rg7 $11) 18... c5 {[%emt 0:04:59]} (18... a5 $14 19. cxd5 (19. Qxb7 $2 Qxc4+ 20. Kb1 Rb8 $19) 19... axb4 20. dxe6 fxg5 21. exd7+ Kxd7) 19. cxd5 $16 {[%emt 0:01:01] White is more active.} cxb4 {[%emt 0:00:19]} 20. dxe6 {[%emt 0:00:02]} fxg5 {[%emt 0:00:38]} 21. exd7+ {[%emt 0:00:08]} Kxd7 {[%emt 0:00:07]} 22. hxg5 {[%emt 0:00:02] KRR-KRR} Rac8+ {[%emt 0:00:35]} (22... Rxg5 $16 23. Rxh7+ Kd6) 23. Kd2 $18 {[%emt 0:00:40]} Rxg5 {[%emt 0:02:20]} 24. Rxh7+ {[%emt 0:00:06] White has a decisive advantage.} Kd6 {[%emt 0:00:43] [#]} 25. Rdh1 $1 {[%emt 0:06:37]} ({Don't take} 25. Rxb7 $6 Rxg2 26. Rf1 (26. Rxa7 Rxf2+ 27. Ke3 Rxb2 $11) 26... Rh8 27. Rxb4 (27. Rxa7 Rhh2 $18) 27... Rhh2 $18) 25... Rxg2 {[%emt 0:00:23]} 26. R1h6+ {[%emt 0:00:07]} Kd5 {[%emt 0:44:05] Weighted Error Value: White=0.09 (flawless) /Black=0.25 (precise)} 1-0